[Event "Titled Tuesday Blitz August 16 Late 2022"]
[White "Kolb, Tobias"]
[Black "Senthil Maran K"]
[WhiteFideId "12992321"]
[BlackFideId "25035681"]
[WhiteElo "2224"]
[BlackElo "2124"]
[Result "0-1"]
[Round "04"]
[TimeControl "180+1"]
[Date "2022.08.18"]
[WhiteClock "0:00:00"]
[BlackClock "0:00:00"]

1. Nf3 {[%clk 0:00:00]}  d5 {[%clk 0:00:00]} 2. g3 {[%clk 0:00:00]}  g6 {[%clk 0:00:00]} 3. Bg2 {[%clk 0:00:00]}  Bg7 {[%clk 0:00:00]} 4. O-O {[%clk 0:00:00]}  Nf6 {[%clk 0:00:00]} 5. d4 {[%clk 0:00:00]}  Nbd7 {[%clk 0:00:00]} 6. b3 {[%clk 0:00:00]}  O-O {[%clk 0:00:00]} 7. Bb2 {[%clk 0:00:00]}  c5 {[%clk 0:00:00]} 8. dxc5 {[%clk 0:00:00]}  Nxc5 {[%clk 0:00:00]} 9. Nbd2 {[%clk 0:00:00]}  Bf5 {[%clk 0:00:00]} 10. c4 {[%clk 0:00:00]}  Rc8 {[%clk 0:00:00]} 11. Nd4 {[%clk 0:00:00]}  Nfe4 {[%clk 0:00:00]} 12. cxd5 {[%clk 0:00:00]}  Qxd5 {[%clk 0:00:00]} 13. Nxf5 {[%clk 0:00:00]}  Qxf5 {[%clk 0:00:00]} 14. Bxg7 {[%clk 0:00:00]}  Kxg7 {[%clk 0:00:00]} 15. Nxe4 {[%clk 0:00:00]}  Nxe4 {[%clk 0:00:00]} 16. Qd4+ {[%clk 0:00:00]}  Nf6 {[%clk 0:00:00]} 17. Bxb7 {[%clk 0:00:00]}  Rc2 {[%clk 0:00:00]} 18. e4 {[%clk 0:00:00]}  Qh3 {[%clk 0:00:00]} 19. Rfc1 {[%clk 0:00:00]}  Re2 {[%clk 0:00:00]} 20. Re1 {[%clk 0:00:00]}  Rd8 {[%clk 0:00:00]} 21. Qc3 {[%clk 0:00:00]}  Rdd2 {[%clk 0:00:00]} 22. Rxe2 {[%clk 0:00:00]}  Rxe2 {[%clk 0:00:00]} 23. Qf3 {[%clk 0:00:00]}  Ng4 {[%clk 0:00:00]} 24. Qg2 {[%clk 0:00:00]}  Qxg2+ {[%clk 0:00:00]} 25. Kxg2 {[%clk 0:00:00]}  Rxf2+ {[%clk 0:00:00]} 26. Kg1 {[%clk 0:00:00]}  Rb2 {[%clk 0:00:00]} 27. h3 {[%clk 0:00:00]}  Ne5 {[%clk 0:00:00]} 28. Bd5 {[%clk 0:00:00]}  e6 {[%clk 0:00:00]} 29. Bc4 {[%clk 0:00:00]}  g5 {[%clk 0:00:00]} 30. a4 {[%clk 0:00:00]}  h5 {[%clk 0:00:00]} 31. a5 {[%clk 0:00:00]}  f5 {[%clk 0:00:00]} 32. exf5 {[%clk 0:00:00]}  Nf3+ {[%clk 0:00:00]} 33. Kf1 {[%clk 0:00:00]}  exf5 {[%clk 0:00:00]} 34. Bd3 {[%clk 0:00:00]}  f4 {[%clk 0:00:00]} 35. gxf4 {[%clk 0:00:00]}  g4 {[%clk 0:00:00]} 36. hxg4 {[%clk 0:00:00]}  hxg4 {[%clk 0:00:00]} 37. Be2 {[%clk 0:00:00]}  Nd2+ {[%clk 0:00:00]} 38. Kf2 {[%clk 0:00:00]}  Nxb3 {[%clk 0:00:00]} 39. Rg1 {[%clk 0:00:00]}  Nd4 {[%clk 0:00:00]} 0-1


[Site "https://www.chess.com"]

[Event "Titled Tuesday Blitz August 16 Late 2022"]
[White "Korchmar, Vasiliy"]
[Black "Jorajuria Mendoza, Algol"]
[WhiteFideId "24131750"]
[BlackFideId "5128897"]
[WhiteElo "2370"]
[BlackElo "1600"]
[Result "0-1"]
[Round "04"]
[TimeControl "180+1"]
[Date "2022.08.18"]
[WhiteClock "0:00:00"]
[BlackClock "0:00:00"]

1. e4 {[%clk 0:00:00]}  c5 {[%clk 0:00:00]} 2. Nf3 {[%clk 0:00:00]}  Nc6 {[%clk 0:00:00]} 3. d4 {[%clk 0:00:00]}  cxd4 {[%clk 0:00:00]} 4. Nxd4 {[%clk 0:00:00]}  Nf6 {[%clk 0:00:00]} 5. Nc3 {[%clk 0:00:00]}  d6 {[%clk 0:00:00]} 6. Bb5 {[%clk 0:00:00]}  Bd7 {[%clk 0:00:00]} 7. Bg5 {[%clk 0:00:00]}  Nxd4 {[%clk 0:00:00]} 8. Bxd7+ {[%clk 0:00:00]}  Nxd7 {[%clk 0:00:00]} 9. Qxd4 {[%clk 0:00:00]}  h6 {[%clk 0:00:00]} 10. Bh4 {[%clk 0:00:00]}  e5 {[%clk 0:00:00]} 11. Qc4 {[%clk 0:00:00]}  Qxh4 {[%clk 0:00:00]} 12. Nd5 {[%clk 0:00:00]}  Nb6 {[%clk 0:00:00]} 13. Qb5+ {[%clk 0:00:00]}  Kd8 {[%clk 0:00:00]} 14. O-O-O {[%clk 0:00:00]}  Qxe4 {[%clk 0:00:00]} 15. Nxb6 {[%clk 0:00:00]}  axb6 {[%clk 0:00:00]} 16. Rhe1 {[%clk 0:00:00]}  Qf4+ {[%clk 0:00:00]} 17. Kb1 {[%clk 0:00:00]}  Qa4 {[%clk 0:00:00]} 18. Qxb6+ {[%clk 0:00:00]}  Kc8 {[%clk 0:00:00]} 19. a3 {[%clk 0:00:00]}  Ra6 {[%clk 0:00:00]} 20. Qe3 {[%clk 0:00:00]}  Rc6 {[%clk 0:00:00]} 21. Ka1 {[%clk 0:00:00]}  Be7 {[%clk 0:00:00]} 22. f4 {[%clk 0:00:00]}  f6 {[%clk 0:00:00]} 23. Qg3 {[%clk 0:00:00]}  g5 {[%clk 0:00:00]} 24. Qg4+ {[%clk 0:00:00]}  Kc7 {[%clk 0:00:00]} 25. Qe6 {[%clk 0:00:00]}  Re8 {[%clk 0:00:00]} 26. Qf7 {[%clk 0:00:00]}  Rxc2 {[%clk 0:00:00]} 27. fxe5 {[%clk 0:00:00]}  fxe5 {[%clk 0:00:00]} 28. Rc1 {[%clk 0:00:00]}  Rxc1+ {[%clk 0:00:00]} 29. Rxc1+ {[%clk 0:00:00]}  Kb6 {[%clk 0:00:00]} 30. Rc4 {[%clk 0:00:00]}  Qd1+ {[%clk 0:00:00]} 31. Ka2 {[%clk 0:00:00]}  Rf8 {[%clk 0:00:00]} 32. Qxe7 {[%clk 0:00:00]}  Qd5 {[%clk 0:00:00]} 33. Qc7+ {[%clk 0:00:00]}  Ka6 {[%clk 0:00:00]} 34. g3 {[%clk 0:00:00]}  Rf2 {[%clk 0:00:00]} 35. Qc8 {[%clk 0:00:00]}  Rc2 {[%clk 0:00:00]} 36. Qa8+ {[%clk 0:00:00]}  Kb6 {[%clk 0:00:00]} 37. Qd8+ {[%clk 0:00:00]}  Ka6 {[%clk 0:00:00]} 38. Qa8+ {[%clk 0:00:00]}  Kb6 {[%clk 0:00:00]} 0-1


[Site "https://www.chess.com"]

[Event "Titled Tuesday Blitz August 16 Late 2022"]
[White "Kostiukov, Alexandr"]
[Black "Tarnowska, Aleksandra"]
[WhiteFideId "14108100"]
[BlackFideId "1180967"]
[WhiteElo "2202"]
[BlackElo "1700"]
[Result "0-1"]
[Round "04"]
[TimeControl "180+1"]
[Date "2022.08.18"]
[WhiteClock "0:00:00"]
[BlackClock "0:00:00"]

1. g3 {[%clk 0:00:00]}  e5 {[%clk 0:00:00]} 2. Bg2 {[%clk 0:00:00]}  d5 {[%clk 0:00:00]} 3. c4 {[%clk 0:00:00]}  c6 {[%clk 0:00:00]} 4. cxd5 {[%clk 0:00:00]}  cxd5 {[%clk 0:00:00]} 5. d4 {[%clk 0:00:00]}  e4 {[%clk 0:00:00]} 6. Nc3 {[%clk 0:00:00]}  Nc6 {[%clk 0:00:00]} 7. Nh3 {[%clk 0:00:00]}  f5 {[%clk 0:00:00]} 8. O-O {[%clk 0:00:00]}  Nf6 {[%clk 0:00:00]} 9. Bg5 {[%clk 0:00:00]}  Be7 {[%clk 0:00:00]} 10. Nf4 {[%clk 0:00:00]}  O-O {[%clk 0:00:00]} 11. e3 {[%clk 0:00:00]}  Qb6 {[%clk 0:00:00]} 12. Ncxd5 {[%clk 0:00:00]}  Qxb2 {[%clk 0:00:00]} 13. Bxf6 {[%clk 0:00:00]}  Bxf6 {[%clk 0:00:00]} 14. Nxf6+ {[%clk 0:00:00]}  Rxf6 {[%clk 0:00:00]} 15. Qa4 {[%clk 0:00:00]}  Qb4 {[%clk 0:00:00]} 16. Qc2 {[%clk 0:00:00]}  Qd6 {[%clk 0:00:00]} 17. h4 {[%clk 0:00:00]}  Be6 {[%clk 0:00:00]} 18. d5 {[%clk 0:00:00]}  Nb4 {[%clk 0:00:00]} 19. Qd2 {[%clk 0:00:00]}  Nxd5 {[%clk 0:00:00]} 20. Rfd1 {[%clk 0:00:00]}  Rd8 {[%clk 0:00:00]} 21. Qa5 {[%clk 0:00:00]}  Qb6 {[%clk 0:00:00]} 22. Qxb6 {[%clk 0:00:00]}  axb6 {[%clk 0:00:00]} 23. Rd4 {[%clk 0:00:00]}  Bf7 {[%clk 0:00:00]} 24. Rb1 {[%clk 0:00:00]}  Rfd6 {[%clk 0:00:00]} 25. Nxd5 {[%clk 0:00:00]}  Rxd5 {[%clk 0:00:00]} 26. Rxd5 {[%clk 0:00:00]}  Rxd5 {[%clk 0:00:00]} 27. Rxb6 {[%clk 0:00:00]}  Rd1+ {[%clk 0:00:00]} 28. Kh2 {[%clk 0:00:00]}  Bd5 {[%clk 0:00:00]} 29. Rd6 {[%clk 0:00:00]}  Rd2 {[%clk 0:00:00]} 30. Kg1 {[%clk 0:00:00]}  Rd1+ {[%clk 0:00:00]} 31. Kh2 {[%clk 0:00:00]}  Rd3 {[%clk 0:00:00]} 0-1


[Site "https://www.chess.com"]

[Event "Titled Tuesday Blitz August 16 Late 2022"]
[White "Leitao, Rafael"]
[Black "Goncalves, Davi Sulzbacher"]
[WhiteFideId "2101246"]
[BlackFideId "2154510"]
[WhiteElo "2609"]
[BlackElo "2107"]
[Result "1-0"]
[Round "04"]
[TimeControl "180+1"]
[Date "2022.08.18"]
[WhiteClock "0:00:00"]
[BlackClock "0:00:00"]

1. c4 {[%clk 0:00:00]}  c5 {[%clk 0:00:00]} 2. Nf3 {[%clk 0:00:00]}  Nc6 {[%clk 0:00:00]} 3. e3 {[%clk 0:00:00]}  g6 {[%clk 0:00:00]} 4. Nc3 {[%clk 0:00:00]}  Nf6 {[%clk 0:00:00]} 5. d4 {[%clk 0:00:00]}  cxd4 {[%clk 0:00:00]} 6. exd4 {[%clk 0:00:00]}  d5 {[%clk 0:00:00]} 7. cxd5 {[%clk 0:00:00]}  Nxd5 {[%clk 0:00:00]} 8. Bc4 {[%clk 0:00:00]}  Nb6 {[%clk 0:00:00]} 9. Bb3 {[%clk 0:00:00]}  Bg7 {[%clk 0:00:00]} 10. d5 {[%clk 0:00:00]}  Na5 {[%clk 0:00:00]} 11. O-O {[%clk 0:00:00]}  Nxb3 {[%clk 0:00:00]} 12. axb3 {[%clk 0:00:00]}  O-O {[%clk 0:00:00]} 13. Re1 {[%clk 0:00:00]}  Bxc3 {[%clk 0:00:00]} 14. bxc3 {[%clk 0:00:00]}  Qxd5 {[%clk 0:00:00]} 15. Bh6 {[%clk 0:00:00]}  Re8 {[%clk 0:00:00]} 16. Qc2 {[%clk 0:00:00]}  Bf5 {[%clk 0:00:00]} 17. Qb2 {[%clk 0:00:00]}  f6 {[%clk 0:00:00]} 18. c4 {[%clk 0:00:00]}  Qc5 {[%clk 0:00:00]} 19. Be3 {[%clk 0:00:00]}  Qc7 {[%clk 0:00:00]} 20. Nd4 {[%clk 0:00:00]}  Bd7 {[%clk 0:00:00]} 21. Rac1 {[%clk 0:00:00]}  Rac8 {[%clk 0:00:00]} 22. h4 {[%clk 0:00:00]}  Qe5 {[%clk 0:00:00]} 23. Qe2 {[%clk 0:00:00]}  Qe4 {[%clk 0:00:00]} 24. h5 {[%clk 0:00:00]}  Qg4 {[%clk 0:00:00]} 25. hxg6 {[%clk 0:00:00]}  hxg6 {[%clk 0:00:00]} 26. f3 {[%clk 0:00:00]}  Qh4 {[%clk 0:00:00]} 27. Bf2 {[%clk 0:00:00]}  Qf4 {[%clk 0:00:00]} 28. Be3 {[%clk 0:00:00]}  Qe5 {[%clk 0:00:00]} 29. Qf2 {[%clk 0:00:00]}  Kf7 {[%clk 0:00:00]} 30. Nb5 {[%clk 0:00:00]}  Bxb5 {[%clk 0:00:00]} 31. Bxb6 {[%clk 0:00:00]}  Qh5 {[%clk 0:00:00]} 32. Bxa7 {[%clk 0:00:00]}  Rh8 {[%clk 0:00:00]} 33. Qg3 {[%clk 0:00:00]}  Bd7 {[%clk 0:00:00]} 34. Be3 {[%clk 0:00:00]}  Ra8 {[%clk 0:00:00]} 35. Re2 {[%clk 0:00:00]}  Bf5 {[%clk 0:00:00]} 36. Kf2 {[%clk 0:00:00]}  Bd3 {[%clk 0:00:00]} 37. Rd2 {[%clk 0:00:00]}  Qf5 {[%clk 0:00:00]} 38. Re1 {[%clk 0:00:00]}  e5 {[%clk 0:00:00]} 39. Red1 {[%clk 0:00:00]}  e4 {[%clk 0:00:00]} 40. Qf4 {[%clk 0:00:00]}  Qxf4 {[%clk 0:00:00]} 41. Bxf4 {[%clk 0:00:00]}  f5 {[%clk 0:00:00]} 42. Ke3 {[%clk 0:00:00]}  Rhe8 {[%clk 0:00:00]} 43. fxe4 {[%clk 0:00:00]}  Rxe4+ {[%clk 0:00:00]} 44. Kf3 {[%clk 0:00:00]}  g5 {[%clk 0:00:00]} 45. Bxg5 {[%clk 0:00:00]}  Rg4 {[%clk 0:00:00]} 46. Rxd3 {[%clk 0:00:00]}  Rxg5 {[%clk 0:00:00]} 47. Rd7+ {[%clk 0:00:00]}  Ke6 {[%clk 0:00:00]} 48. R1d6+ {[%clk 0:00:00]}  Ke5 {[%clk 0:00:00]} 49. Rd5+ {[%clk 0:00:00]}  Ke6 {[%clk 0:00:00]} 50. c5 {[%clk 0:00:00]}  Ra1 {[%clk 0:00:00]} 51. R5d6+ {[%clk 0:00:00]}  Ke5 {[%clk 0:00:00]} 52. Re7# {[%clk 0:00:00]} 1-0


[Site "https://www.chess.com"]

[Event "Titled Tuesday Blitz August 16 Late 2022"]
[White "Leiva, Gianmarco"]
[Black "Levine, Joseph"]
[WhiteFideId "3804399"]
[BlackFideId "30940346"]
[WhiteElo "2323"]
[BlackElo "1810"]
[Result "0-1"]
[Round "04"]
[TimeControl "180+1"]
[Date "2022.08.16"]
[WhiteClock "0:00:02"]
[BlackClock "0:00:02"]

1. e4 {[%clk 0:03:00]}  e6 {[%clk 0:02:58]} 2. d4 {[%clk 0:03:00]}  d5 {[%clk 0:02:59]} 3. Nd2 {[%clk 0:03:01]}  c5 {[%clk 0:02:58]} 4. Ngf3 {[%clk 0:03:01]}  cxd4 {[%clk 0:02:58]} 5. Nxd4 {[%clk 0:03:00]}  Nc6 {[%clk 0:02:59]} 6. Bb5 {[%clk 0:03:01]}  Bd7 {[%clk 0:02:59]} 7. Nxc6 {[%clk 0:03:02]}  bxc6 {[%clk 0:03:00]} 8. Bd3 {[%clk 0:03:02]}  Qc7 {[%clk 0:02:59]} 9. Qe2 {[%clk 0:03:03]}  Ne7 {[%clk 0:03:00]} 10. O-O {[%clk 0:03:01]}  Ng6 {[%clk 0:03:00]} 11. Nf3 {[%clk 0:03:00]}  Bd6 {[%clk 0:03:00]} 12. Re1 {[%clk 0:02:59]}  O-O {[%clk 0:02:59]} 13. e5 {[%clk 0:02:58]}  Be7 {[%clk 0:02:56]} 14. Bg5 {[%clk 0:02:48]}  f6 {[%clk 0:02:48]} 15. exf6 {[%clk 0:02:43]}  gxf6 {[%clk 0:02:49]} 16. Bh6 {[%clk 0:02:33]}  Rf7 {[%clk 0:02:49]} 17. c4 {[%clk 0:02:07]}  e5 {[%clk 0:02:36]} 18. cxd5 {[%clk 0:02:01]}  cxd5 {[%clk 0:02:37]} 19. Rac1 {[%clk 0:01:59]}  Qa5 {[%clk 0:02:15]} 20. Bxg6 {[%clk 0:01:17]}  hxg6 {[%clk 0:02:16]} 21. Nh4 {[%clk 0:01:18]}  Kh7 {[%clk 0:02:14]} 22. Bd2 {[%clk 0:01:14]}  Qa4 {[%clk 0:01:57]} 23. Qd3 {[%clk 0:00:55]}  Qxh4 {[%clk 0:01:41]} 24. Qxd5 {[%clk 0:00:55]}  Raf8 {[%clk 0:01:41]} 25. Qxd7 {[%clk 0:00:55]}  Bc5 {[%clk 0:01:40]} 26. Qxf7+ {[%clk 0:00:40]}  Rxf7 {[%clk 0:01:41]} 27. Rxc5 {[%clk 0:00:40]}  Rd7 {[%clk 0:01:24]} 28. Bc3 {[%clk 0:00:29]}  Qa4 {[%clk 0:01:07]} 29. Ra5 {[%clk 0:00:23]}  Qc2 {[%clk 0:01:05]} 30. h4 {[%clk 0:00:16]}  Qd3 {[%clk 0:00:42]} 31. Ra4 {[%clk 0:00:13]}  a6 {[%clk 0:00:39]} 32. Rae4 {[%clk 0:00:13]}  Rd6 {[%clk 0:00:33]} 33. R4e3 {[%clk 0:00:11]}  Qc4 {[%clk 0:00:32]} 34. a3 {[%clk 0:00:09]}  Qa4 {[%clk 0:00:32]} 35. Re4 {[%clk 0:00:09]}  Qc6 {[%clk 0:00:28]} 36. R4e3 {[%clk 0:00:07]}  Qd7 {[%clk 0:00:26]} 37. f4 {[%clk 0:00:03]}  Rd1 {[%clk 0:00:18]} 38. fxe5 {[%clk 0:00:04]}  fxe5 {[%clk 0:00:17]} 39. Rxe5 {[%clk 0:00:03]}  Rxe1+ {[%clk 0:00:16]} 40. Rxe1 {[%clk 0:00:03]}  Qg4 {[%clk 0:00:14]} 41. Re3 {[%clk 0:00:03]}  Kg8 {[%clk 0:00:12]} 42. Rh3 {[%clk 0:00:04]}  Kf7 {[%clk 0:00:11]} 43. Rf3+ {[%clk 0:00:04]}  Ke8 {[%clk 0:00:10]} 44. Rh3 {[%clk 0:00:05]}  Kd7 {[%clk 0:00:10]} 45. Kh2 {[%clk 0:00:05]}  Kc6 {[%clk 0:00:10]} 46. Kg1 {[%clk 0:00:03]}  Kb5 {[%clk 0:00:10]} 47. Kh2 {[%clk 0:00:02]}  Ka4 {[%clk 0:00:10]} 48. Kg1 {[%clk 0:00:02]}  Kb3 {[%clk 0:00:10]} 49. Kh2 {[%clk 0:00:02]}  Ka2 {[%clk 0:00:08]} 50. Kg1 {[%clk 0:00:03]}  Qf4 {[%clk 0:00:05]} 51. h5 {[%clk 0:00:01]}  Qc1+ {[%clk 0:00:03]} 52. Kh2 {[%clk 0:00:01]}  Qf4+ {[%clk 0:00:04]} 53. Kg1 {[%clk 0:00:02]}  gxh5 {[%clk 0:00:03]} 54. Rxh5 {[%clk 0:00:02]}  Qe3+ {[%clk 0:00:04]} 55. Kh1 {[%clk 0:00:02]}  Qc1+ {[%clk 0:00:03]} 56. Kh2 {[%clk 0:00:02]}  Qf4+ {[%clk 0:00:04]} 57. Kh1 {[%clk 0:00:02]}  Qg4 {[%clk 0:00:04]} 58. Rh3 {[%clk 0:00:02]}  Kb1 {[%clk 0:00:02]} 59. Kh2 {[%clk 0:00:03]}  Kc2 {[%clk 0:00:03]} 60. Rf3 {[%clk 0:00:03]}  Kd1 {[%clk 0:00:02]} 61. Rf1+ {[%clk 0:00:03]}  Kc2 {[%clk 0:00:03]} 62. Rf3 {[%clk 0:00:03]}  Kb1 {[%clk 0:00:03]} 63. Rg3 {[%clk 0:00:04]}  Qh4+ {[%clk 0:00:02]} 64. Rh3 {[%clk 0:00:05]}  Qf4+ {[%clk 0:00:03]} 65. Kg1 {[%clk 0:00:05]}  Ka2 {[%clk 0:00:03]} 66. Rf3 {[%clk 0:00:05]}  Qc1+ {[%clk 0:00:03]} 67. Kf2 {[%clk 0:00:06]}  Qc2+ {[%clk 0:00:03]} 68. Kg3 {[%clk 0:00:06]}  Qg6+ {[%clk 0:00:03]} 69. Kh2 {[%clk 0:00:07]}  a5 {[%clk 0:00:02]} 70. g3 {[%clk 0:00:07]}  a4 {[%clk 0:00:03]} 71. Kg2 {[%clk 0:00:06]}  Qh5 {[%clk 0:00:03]} 72. Rf4 {[%clk 0:00:06]}  Qd5+ {[%clk 0:00:03]} 73. Kh3 {[%clk 0:00:06]}  Qh1+ {[%clk 0:00:02]} 74. Kg4 {[%clk 0:00:07]}  Qd1+ {[%clk 0:00:03]} 75. Kg5 {[%clk 0:00:06]}  Qd5+ {[%clk 0:00:02]} 76. Rf5 {[%clk 0:00:06]}  Qg8+ {[%clk 0:00:02]} 77. Kf4 {[%clk 0:00:07]}  Qc4+ {[%clk 0:00:02]} 78. Kf3 {[%clk 0:00:06]}  Qd3+ {[%clk 0:00:02]} 79. Kg4 {[%clk 0:00:07]}  Qe4+ {[%clk 0:00:02]} 80. Rf4 {[%clk 0:00:08]}  Qg6+ {[%clk 0:00:03]} 81. Kh3 {[%clk 0:00:08]}  Qh5+ {[%clk 0:00:03]} 82. Rh4 {[%clk 0:00:09]}  Qf5+ {[%clk 0:00:04]} 83. Kg2 {[%clk 0:00:09]}  Qc2+ {[%clk 0:00:04]} 84. Kf3 {[%clk 0:00:08]}  Qd1+ {[%clk 0:00:05]} 85. Kf4 {[%clk 0:00:06]}  Qd6+ {[%clk 0:00:05]} 86. Be5 {[%clk 0:00:06]}  Qf8+ {[%clk 0:00:05]} 87. Ke3 {[%clk 0:00:05]}  Qc5+ {[%clk 0:00:04]} 88. Bd4 {[%clk 0:00:05]}  Qe7+ {[%clk 0:00:05]} 89. Re4 {[%clk 0:00:05]}  Qg5+ {[%clk 0:00:05]} 90. Kf3 {[%clk 0:00:05]}  Qf5+ {[%clk 0:00:05]} 91. Rf4 {[%clk 0:00:05]}  Qd3+ {[%clk 0:00:05]} 92. Kg2 {[%clk 0:00:05]}  Qe2+ {[%clk 0:00:06]} 93. Kg1 {[%clk 0:00:04]}  Qe1+ {[%clk 0:00:05]} 94. Kh2 {[%clk 0:00:05]}  Qe2+ {[%clk 0:00:05]} 95. Kh3 {[%clk 0:00:06]}  Qh5+ {[%clk 0:00:05]} 96. Rh4 {[%clk 0:00:06]}  Qf5+ {[%clk 0:00:05]} 97. Kg2 {[%clk 0:00:07]}  Qc2+ {[%clk 0:00:04]} 98. Kf3 {[%clk 0:00:06]}  Qf5+ {[%clk 0:00:04]} 99. Rf4 {[%clk 0:00:06]}  Qd3+ {[%clk 0:00:04]} 100. Kg4 {[%clk 0:00:06]}  Qg6+ {[%clk 0:00:04]} 101. Kf3 {[%clk 0:00:03]}  Qh5+ {[%clk 0:00:03]} 102. Ke3 {[%clk 0:00:03]}  Qe8+ {[%clk 0:00:02]} 103. Kd3 {[%clk 0:00:02]}  Qg6+ {[%clk 0:00:02]} 0-1


[Site "https://www.chess.com"]

[Event "Titled Tuesday Blitz August 16 Late 2022"]
[White "Lorenzo De La Riva, Lazaro"]
[Black "Gomez Ledo, Roberto Carlos"]
[WhiteFideId "2268809"]
[BlackFideId "3507076"]
[WhiteElo "2325"]
[BlackElo "2379"]
[Result "0-1"]
[Round "04"]
[TimeControl "180+1"]
[Date "2022.08.16"]
[WhiteClock "0:00:03"]
[BlackClock "0:00:16"]

1. Nf3 {[%clk 0:03:00]}  Nf6 {[%clk 0:02:58]} 2. g3 {[%clk 0:03:00]}  d5 {[%clk 0:02:57]} 3. Bg2 {[%clk 0:03:00]}  Bf5 {[%clk 0:02:57]} 4. O-O {[%clk 0:03:00]}  e6 {[%clk 0:02:56]} 5. d3 {[%clk 0:02:57]}  h6 {[%clk 0:02:53]} 6. Nbd2 {[%clk 0:02:53]}  Bh7 {[%clk 0:02:47]} 7. c4 {[%clk 0:02:50]}  c6 {[%clk 0:02:46]} 8. b3 {[%clk 0:02:49]}  a5 {[%clk 0:02:45]} 9. a3 {[%clk 0:02:49]}  Be7 {[%clk 0:02:42]} 10. Bb2 {[%clk 0:02:49]}  O-O {[%clk 0:02:41]} 11. Ra2 {[%clk 0:02:44]}  Nbd7 {[%clk 0:02:39]} 12. Qa1 {[%clk 0:02:44]}  Qb6 {[%clk 0:02:38]} 13. Bc3 {[%clk 0:02:32]}  Rfe8 {[%clk 0:02:30]} 14. Rb1 {[%clk 0:02:26]}  c5 {[%clk 0:02:24]} 15. cxd5 {[%clk 0:02:22]}  exd5 {[%clk 0:02:21]} 16. d4 {[%clk 0:02:11]}  Bxb1 {[%clk 0:02:19]} 17. Qxb1 {[%clk 0:02:10]}  Bf8 {[%clk 0:02:16]} 18. e3 {[%clk 0:02:03]}  Rac8 {[%clk 0:02:08]} 19. Qa1 {[%clk 0:01:53]}  a4 {[%clk 0:01:47]} 20. bxa4 {[%clk 0:01:51]}  c4 {[%clk 0:01:46]} 21. a5 {[%clk 0:01:50]}  Qa6 {[%clk 0:01:39]} 22. Rb2 {[%clk 0:01:48]}  b6 {[%clk 0:01:32]} 23. axb6 {[%clk 0:01:48]}  Nxb6 {[%clk 0:01:33]} 24. Ne5 {[%clk 0:01:25]}  Na4 {[%clk 0:01:30]} 25. Rc2 {[%clk 0:01:24]}  Nxc3 {[%clk 0:01:28]} 26. Rxc3 {[%clk 0:01:24]}  Bb4 {[%clk 0:01:25]} 27. Rc2 {[%clk 0:01:23]}  Qxa3 {[%clk 0:01:21]} 28. Ra2 {[%clk 0:01:22]}  Qc3 {[%clk 0:01:18]} 29. Qb1 {[%clk 0:01:12]}  Ra8 {[%clk 0:01:08]} 30. Rc2 {[%clk 0:01:00]}  Ra1 {[%clk 0:00:56]} 31. Rxc3 {[%clk 0:01:00]}  Bxc3 {[%clk 0:00:56]} 32. Qf1 {[%clk 0:00:32]}  Rxf1+ {[%clk 0:00:47]} 33. Nxf1 {[%clk 0:00:31]}  Rb8 {[%clk 0:00:42]} 34. Bh3 {[%clk 0:00:23]}  Rb2 {[%clk 0:00:38]} 35. Bf5 {[%clk 0:00:23]}  Be1 {[%clk 0:00:33]} 36. f3 {[%clk 0:00:20]}  g6 {[%clk 0:00:30]} 37. Bh3 {[%clk 0:00:15]}  c3 {[%clk 0:00:25]} 38. Nd3 {[%clk 0:00:16]}  c2 {[%clk 0:00:23]} 39. Nxb2 {[%clk 0:00:12]}  c1=Q {[%clk 0:00:23]} 40. Nd3 {[%clk 0:00:12]}  Qd1 {[%clk 0:00:22]} 41. Ne5 {[%clk 0:00:09]}  Qe2 {[%clk 0:00:20]} 42. Bg2 {[%clk 0:00:08]}  Bf2+ {[%clk 0:00:20]} 43. Kh1 {[%clk 0:00:08]}  Bxe3 {[%clk 0:00:20]} 44. f4 {[%clk 0:00:05]}  Qf2 {[%clk 0:00:17]} 45. Nf3 {[%clk 0:00:03]}  Bxd4 {[%clk 0:00:16]} 0-1


[Site "https://www.chess.com"]

[Event "Titled Tuesday Blitz August 16 Late 2022"]
[White "Maltsevskaya, Aleksandra"]
[Black "Naroditsky, Daniel"]
[WhiteFideId "24174041"]
[BlackFideId "2026961"]
[WhiteElo "2243"]
[BlackElo "2628"]
[Result "0-1"]
[Round "04"]
[TimeControl "180+1"]
[Date "2022.08.16"]
[WhiteClock "0:00:14"]
[BlackClock "0:00:44"]

1. e4 {[%clk 0:03:00]}  e5 {[%clk 0:02:56]} 2. Nf3 {[%clk 0:03:00]}  Nc6 {[%clk 0:02:57]} 3. Bb5 {[%clk 0:03:00]}  a6 {[%clk 0:02:57]} 4. Ba4 {[%clk 0:03:00]}  d6 {[%clk 0:02:57]} 5. c3 {[%clk 0:02:57]}  Bd7 {[%clk 0:02:57]} 6. O-O {[%clk 0:02:56]}  Nf6 {[%clk 0:02:57]} 7. Re1 {[%clk 0:02:55]}  g6 {[%clk 0:02:57]} 8. d4 {[%clk 0:02:55]}  Bg7 {[%clk 0:02:57]} 9. Nbd2 {[%clk 0:02:50]}  exd4 {[%clk 0:02:57]} 10. e5 {[%clk 0:02:45]}  dxe5 {[%clk 0:02:50]} 11. Nxe5 {[%clk 0:02:45]}  O-O {[%clk 0:02:34]} 12. Bxc6 {[%clk 0:01:43]}  Bxc6 {[%clk 0:02:26]} 13. Nxc6 {[%clk 0:01:43]}  bxc6 {[%clk 0:02:27]} 14. cxd4 {[%clk 0:01:43]}  Qxd4 {[%clk 0:02:28]} 15. Nb3 {[%clk 0:01:43]}  Qh4 {[%clk 0:01:56]} 16. Qf3 {[%clk 0:01:38]}  Nd5 {[%clk 0:01:48]} 17. g3 {[%clk 0:01:30]}  Qh3 {[%clk 0:01:34]} 18. Na5 {[%clk 0:01:18]}  Rae8 {[%clk 0:01:34]} 19. Bd2 {[%clk 0:01:11]}  Qd7 {[%clk 0:01:24]} 20. Rad1 {[%clk 0:00:35]}  Rxe1+ {[%clk 0:01:11]} 21. Bxe1 {[%clk 0:00:34]}  Re8 {[%clk 0:01:02]} 22. Bc3 {[%clk 0:00:32]}  Bxc3 {[%clk 0:00:46]} 23. bxc3 {[%clk 0:00:33]}  Qe6 {[%clk 0:00:46]} 24. c4 {[%clk 0:00:29]}  Ne7 {[%clk 0:00:47]} 25. Kg2 {[%clk 0:00:20]}  Nf5 {[%clk 0:00:44]} 26. Qxc6 {[%clk 0:00:14]}  Nh4+ {[%clk 0:00:44]} 0-1


[Site "https://www.chess.com"]